[Event "Titled Tuesday Blitz August 1 Early 2023"]
[White "Levine, David"]
[Black "Perez, Maximiliano"]
[WhiteFideId "2011611"]
[BlackFideId "117234"]
[WhiteElo "2101"]
[BlackElo "2529"]
[Result "0-1"]
[Round "1"]
[TimeControl "180+1"]
[Date "2023.08.01"]
[WhiteClock "0:00:00"]
[BlackClock "0:00:12"]
[Board "243"]

1. d4 {[%clk 0:02:59]}  Nf6 {[%clk 0:02:56]} 2. c4 {[%clk 0:02:59]}  e6 {[%clk 0:02:56]} 3. g3 {[%clk 0:02:59]}  d5 {[%clk 0:02:56]} 4. Bg2 {[%clk 0:02:59]}  Bb4+ {[%clk 0:02:56]} 5. Bd2 {[%clk 0:02:58]}  Be7 {[%clk 0:02:56]} 6. Nf3 {[%clk 0:02:58]}  O-O {[%clk 0:02:56]} 7. O-O {[%clk 0:02:58]}  Nbd7 {[%clk 0:02:57]} 8. Qc2 {[%clk 0:02:58]}  c6 {[%clk 0:02:54]} 9. Bf4 {[%clk 0:02:54]}  Ne4 {[%clk 0:02:53]} 10. Nbd2 {[%clk 0:02:47]}  g5 {[%clk 0:02:53]} 11. Be3 {[%clk 0:02:44]}  Nd6 {[%clk 0:02:52]} 12. b3 {[%clk 0:02:42]}  f5 {[%clk 0:02:49]} 13. c5 {[%clk 0:02:31]}  Nf7 {[%clk 0:02:45]} 14. Nb1 {[%clk 0:02:27]}  Bf6 {[%clk 0:02:27]} 15. Nc3 {[%clk 0:02:22]}  b6 {[%clk 0:02:24]} 16. b4 {[%clk 0:02:20]}  Qc7 {[%clk 0:01:57]} 17. Rac1 {[%clk 0:02:13]}  b5 {[%clk 0:01:57]} 18. a4 {[%clk 0:02:12]}  a6 {[%clk 0:01:56]} 19. Ra1 {[%clk 0:02:11]}  Rb8 {[%clk 0:01:55]} 20. axb5 {[%clk 0:02:07]}  axb5 {[%clk 0:01:55]} 21. Qd2 {[%clk 0:02:01]}  h6 {[%clk 0:01:38]} 22. h4 {[%clk 0:02:00]}  g4 {[%clk 0:01:36]} 23. Bf4 {[%clk 0:02:00]}  e5 {[%clk 0:01:34]} 24. dxe5 {[%clk 0:01:52]}  Ndxe5 {[%clk 0:01:34]} 25. Nxe5 {[%clk 0:01:50]}  Nxe5 {[%clk 0:01:35]} 26. Bxh6 {[%clk 0:01:45]}  Nc4 {[%clk 0:01:34]} 27. Qc1 {[%clk 0:01:45]}  Re8 {[%clk 0:01:27]} 28. e3 {[%clk 0:01:45]}  Qf7 {[%clk 0:01:11]} 29. Bf4 {[%clk 0:01:42]}  Rb7 {[%clk 0:01:11]} 30. Ra8 {[%clk 0:01:38]}  Ra7 {[%clk 0:01:10]} 31. Rxa7 {[%clk 0:01:34]}  Qxa7 {[%clk 0:01:11]} 32. Ne2 {[%clk 0:01:28]}  Qa4 {[%clk 0:00:55]} 33. Qb1 {[%clk 0:01:22]}  Nd2 {[%clk 0:00:52]} 34. Qd3 {[%clk 0:01:13]}  Nxf1 {[%clk 0:00:52]} 35. Bxf1 {[%clk 0:01:08]}  Qxb4 {[%clk 0:00:50]} 36. Bd6 {[%clk 0:01:05]}  Qe4 {[%clk 0:00:48]} 37. Qa3 {[%clk 0:01:00]}  b4 {[%clk 0:00:42]} 38. Qa4 {[%clk 0:00:57]}  Bd7 {[%clk 0:00:42]} 39. Qa7 {[%clk 0:00:57]}  Qe6 {[%clk 0:00:41]} 40. Nf4 {[%clk 0:00:55]}  Qf7 {[%clk 0:00:41]} 41. Bd3 {[%clk 0:00:33]}  b3 {[%clk 0:00:40]} 42. Qb6 {[%clk 0:00:33]}  b2 {[%clk 0:00:38]} 43. Kg2 {[%clk 0:00:33]}  Bg7 {[%clk 0:00:31]} 44. h5 {[%clk 0:00:31]}  Kh7 {[%clk 0:00:26]} 45. Ng6 {[%clk 0:00:30]}  Kh6 {[%clk 0:00:22]} 46. Nf4 {[%clk 0:00:29]}  Ra8 {[%clk 0:00:18]} 47. Qb3 {[%clk 0:00:22]}  Qe8 {[%clk 0:00:18]} 48. Qc2 {[%clk 0:00:20]}  Ra1 {[%clk 0:00:17]} 49. Bxf5 {[%clk 0:00:19]}  b1=Q {[%clk 0:00:17]} 50. Qxb1 {[%clk 0:00:16]}  Rxb1 {[%clk 0:00:17]} 51. Bxb1 {[%clk 0:00:16]}  Qf7 {[%clk 0:00:15]} 52. Bg6 {[%clk 0:00:15]}  Qg8 {[%clk 0:00:16]} 53. Bd3 {[%clk 0:00:09]}  d4 {[%clk 0:00:14]} 54. e4 {[%clk 0:00:07]}  Bf6 {[%clk 0:00:13]} 55. Ne2 {[%clk 0:00:04]}  Qe6 {[%clk 0:00:12]} 56. Nf4 {[%clk 0:00:04]}  Qe8 {[%clk 0:00:12]} 57. Ne2 {[%clk 0:00:00]}  Be5 {[%clk 0:00:12]} 0-1


[Site "https://www.chess.com"]

[Event "Titled Tuesday Blitz August 1 Early 2023"]
[White "NigelDwarf"]
[Black "Goughfather"]
[WhiteElo "2528"]
[BlackElo "2100"]
[Result "1-0"]
[Round "1"]
[TimeControl "180+1"]
[Date "2023.08.01"]
[WhiteClock "0:00:13"]
[BlackClock "0:00:00"]
[Board "244"]

1. Nf3 {[%clk 0:02:56]}  Nf6 {[%clk 0:02:59]} 2. c4 {[%clk 0:02:55]}  c6 {[%clk 0:02:59]} 3. Nc3 {[%clk 0:02:54]}  d5 {[%clk 0:02:58]} 4. e3 {[%clk 0:02:52]}  e6 {[%clk 0:02:56]} 5. b3 {[%clk 0:02:51]}  Nbd7 {[%clk 0:02:51]} 6. Bb2 {[%clk 0:02:51]}  Be7 {[%clk 0:02:51]} 7. Qc2 {[%clk 0:02:51]}  O-O {[%clk 0:02:47]} 8. Rg1 {[%clk 0:02:45]}  b6 {[%clk 0:02:30]} 9. g4 {[%clk 0:02:38]}  Bb7 {[%clk 0:02:22]} 10. g5 {[%clk 0:02:36]}  Ne8 {[%clk 0:02:22]} 11. Bd3 {[%clk 0:02:24]}  g6 {[%clk 0:02:22]} 12. Ne2 {[%clk 0:01:53]}  c5 {[%clk 0:01:49]} 13. Rg3 {[%clk 0:01:30]}  Bd6 {[%clk 0:01:30]} 14. Rh3 {[%clk 0:00:57]}  e5 {[%clk 0:01:17]} 15. cxd5 {[%clk 0:00:49]}  Bxd5 {[%clk 0:01:12]} 16. Be4 {[%clk 0:00:36]}  Be6 {[%clk 0:01:03]} 17. Rh6 {[%clk 0:00:30]}  Rc8 {[%clk 0:00:59]} 18. h4 {[%clk 0:00:26]}  c4 {[%clk 0:00:54]} 19. h5 {[%clk 0:00:21]}  cxb3 {[%clk 0:00:47]} 20. Qd1 {[%clk 0:00:16]}  bxa2 {[%clk 0:00:32]} 21. d4 {[%clk 0:00:14]}  Bb4+ {[%clk 0:00:30]} 22. Kf1 {[%clk 0:00:14]}  Bh3+ {[%clk 0:00:22]} 23. Kg1 {[%clk 0:00:13]}  Qe7 {[%clk 0:00:14]} 24. hxg6 {[%clk 0:00:13]}  fxg6 {[%clk 0:00:13]} 25. Rxh3 {[%clk 0:00:13]}  exd4 {[%clk 0:00:05]} 26. Qxd4 {[%clk 0:00:13]}  Ng7 {[%clk 0:00:05]} 27. Nf4 {[%clk 0:00:11]}  Bc5 {[%clk 0:00:05]} 28. Qd5+ {[%clk 0:00:10]}  Qf7 {[%clk 0:00:04]} 29. Qxf7+ {[%clk 0:00:10]}  Rxf7 {[%clk 0:00:04]} 30. Bd5 {[%clk 0:00:10]}  Nf5 {[%clk 0:00:03]} 31. Bxf7+ {[%clk 0:00:10]}  Kxf7 {[%clk 0:00:04]} 32. Ne5+ {[%clk 0:00:10]}  Nxe5 {[%clk 0:00:04]} 33. Bxe5 {[%clk 0:00:10]}  Kg8 {[%clk 0:00:04]} 34. Rxa2 {[%clk 0:00:10]}  Bf8 {[%clk 0:00:03]} 35. Rxa7 {[%clk 0:00:10]}  Ne7 {[%clk 0:00:02]} 36. Ne6 {[%clk 0:00:10]}  Nc6 {[%clk 0:00:02]} 37. Nxf8 {[%clk 0:00:10]}  Nxa7 {[%clk 0:00:02]} 38. Nd7 {[%clk 0:00:11]}  Re8 {[%clk 0:00:02]} 39. Nf6+ {[%clk 0:00:11]}  Kf7 {[%clk 0:00:01]} 40. Nxe8 {[%clk 0:00:12]}  Kxe8 {[%clk 0:00:02]} 41. Rxh7 {[%clk 0:00:13]}  Nc6 {[%clk 0:00:00]} 42. Bf6 {[%clk 0:00:13]} 1-0


[Site "https://www.chess.com"]

[Event "Titled Tuesday Blitz August 1 Early 2023"]
[White "Winkels, Marcel"]
[Black "Malka, Samuel"]
[WhiteFideId "1003887"]
[BlackFideId "20643675"]
[WhiteElo "2099"]
[BlackElo "2526"]
[Result "0-1"]
[Round "1"]
[TimeControl "180+1"]
[Date "2023.08.01"]
[WhiteClock "0:00:00"]
[BlackClock "0:00:27"]
[Board "245"]

1. e4 {[%clk 0:03:00]}  c5 {[%clk 0:02:41]} 2. Nf3 {[%clk 0:02:57]}  Nc6 {[%clk 0:02:39]} 3. Bb5 {[%clk 0:02:56]}  d6 {[%clk 0:02:39]} 4. O-O {[%clk 0:02:54]}  Bd7 {[%clk 0:02:39]} 5. Re1 {[%clk 0:02:54]}  Nf6 {[%clk 0:02:38]} 6. Nc3 {[%clk 0:02:39]}  e5 {[%clk 0:02:14]} 7. d3 {[%clk 0:02:27]}  h6 {[%clk 0:02:08]} 8. a3 {[%clk 0:02:25]}  a6 {[%clk 0:02:04]} 9. Bc4 {[%clk 0:02:24]}  Be7 {[%clk 0:01:58]} 10. h3 {[%clk 0:02:12]}  g5 {[%clk 0:01:48]} 11. Nh2 {[%clk 0:01:53]}  h5 {[%clk 0:01:47]} 12. Bxg5 {[%clk 0:01:30]}  Rg8 {[%clk 0:01:47]} 13. h4 {[%clk 0:01:18]}  Ng4 {[%clk 0:01:42]} 14. Qf3 {[%clk 0:00:56]}  Rg7 {[%clk 0:01:16]} 15. Bxe7 {[%clk 0:00:45]}  Qxe7 {[%clk 0:01:07]} 16. Nd5 {[%clk 0:00:44]}  Nxh2 {[%clk 0:00:49]} 17. Nf6+ {[%clk 0:00:24]}  Kd8 {[%clk 0:00:38]} 18. Kxh2 {[%clk 0:00:24]}  Nd4 {[%clk 0:00:27]} 19. Qxh5 {[%clk 0:00:11]}  Qxf6 {[%clk 0:00:26]} 20. Qh8+ {[%clk 0:00:10]}  Be8 {[%clk 0:00:27]} 21. Rac1 {[%clk 0:00:06]}  Rxg2+ {[%clk 0:00:27]} 22. Kxg2 {[%clk 0:00:00]}  Qxh8 {[%clk 0:00:27]} 0-1


[Site "https://www.chess.com"]

[Event "Titled Tuesday Blitz August 1 Early 2023"]
[White "Lakshmi C"]
[Black "NovozhilovSemen"]
[WhiteFideId "25035347"]
[WhiteElo "2073"]
[BlackElo "2522"]
[Result "0-1"]
[Round "1"]
[TimeControl "180+1"]
[Date "2023.08.01"]
[WhiteClock "0:00:00"]
[BlackClock "0:02:30"]
[Board "247"]

1. e4 {[%clk 0:00:58]}  e6 {[%clk 0:02:58]} 2. d4 {[%clk 0:00:55]}  d5 {[%clk 0:02:58]} 3. Nc3 {[%clk 0:00:55]}  Nf6 {[%clk 0:02:58]} 4. e5 {[%clk 0:00:50]}  Nfd7 {[%clk 0:02:58]} 5. f4 {[%clk 0:00:48]}  c5 {[%clk 0:02:58]} 6. Nf3 {[%clk 0:00:49]}  Nc6 {[%clk 0:02:57]} 7. Be3 {[%clk 0:00:48]}  Qb6 {[%clk 0:02:57]} 8. Qd2 {[%clk 0:00:45]}  Qxb2 {[%clk 0:02:49]} 9. Rb1 {[%clk 0:00:40]}  Qa3 {[%clk 0:02:48]} 10. Nb5 {[%clk 0:00:10]}  Qxa2 {[%clk 0:02:48]} 11. Rd1 {[%clk 0:00:06]}  Rb8 {[%clk 0:02:47]} 12. dxc5 {[%clk 0:00:05]}  Bxc5 {[%clk 0:02:46]} 13. Bxc5 {[%clk 0:00:04]}  Nxc5 {[%clk 0:02:47]} 14. Nd6+ {[%clk 0:00:04]}  Ke7 {[%clk 0:02:47]} 15. Bb5 {[%clk 0:00:01]}  Rd8 {[%clk 0:02:46]} 16. Bxc6 {[%clk 0:00:01]}  bxc6 {[%clk 0:02:46]} 17. O-O {[%clk 0:00:02]}  Ba6 {[%clk 0:02:46]} 18. Rfe1 {[%clk 0:00:01]}  Rb2 {[%clk 0:02:45]} 19. Qd4 {[%clk 0:00:01]}  Rxc2 {[%clk 0:02:44]} 20. Rc1 {[%clk 0:00:01]}  Rxg2+ {[%clk 0:02:38]} 21. Kh1 {[%clk 0:00:01]}  Nd7 {[%clk 0:02:38]} 22. Ra1 {[%clk 0:00:01]}  Qf2 {[%clk 0:02:32]} 23. Qxf2 {[%clk 0:00:02]}  Rxf2 {[%clk 0:02:33]} 24. Nd4 {[%clk 0:00:02]}  Bb5 {[%clk 0:02:29]} 25. N4xb5 {[%clk 0:00:02]}  cxb5 {[%clk 0:02:30]} 26. Rxa7 {[%clk 0:00:02]}  Rxf4 {[%clk 0:02:30]} 27. Nxb5 {[%clk 0:00:02]}  f6 {[%clk 0:02:29]} 28. exf6+ {[%clk 0:00:01]}  gxf6 {[%clk 0:02:29]} 29. Nc7 {[%clk 0:00:00]}  Re4 {[%clk 0:02:30]} 0-1


[Site "https://www.chess.com"]

[Event "Titled Tuesday Blitz August 1 Early 2023"]
[White "Martinez Reyes, Pedro Ramon"]
[Black "Wisniowski, Natalie"]
[WhiteFideId "3901807"]
[BlackFideId "30929261"]
[WhiteElo "2522"]
[BlackElo "2065"]
[Result "1-0"]
[Round "1"]
[TimeControl "180+1"]
[Date "2023.08.01"]
[WhiteClock "0:01:37"]
[BlackClock "0:00:02"]
[Board "248"]

1. d4 {[%clk 0:02:58]}  Nf6 {[%clk 0:02:59]} 2. Nc3 {[%clk 0:02:57]}  e6 {[%clk 0:02:56]} 3. e4 {[%clk 0:02:52]}  Bb4 {[%clk 0:02:42]} 4. e5 {[%clk 0:02:36]}  Nd5 {[%clk 0:02:33]} 5. Bd2 {[%clk 0:02:27]}  Nxc3 {[%clk 0:02:23]} 6. bxc3 {[%clk 0:02:28]}  Be7 {[%clk 0:02:20]} 7. Qg4 {[%clk 0:02:28]}  Bf8 {[%clk 0:01:33]} 8. Nf3 {[%clk 0:02:23]}  d5 {[%clk 0:01:22]} 9. Bd3 {[%clk 0:02:13]}  c5 {[%clk 0:01:11]} 10. Ng5 {[%clk 0:02:12]}  Nc6 {[%clk 0:00:59]} 11. Nxh7 {[%clk 0:01:56]}  Bd7 {[%clk 0:00:46]} 12. Nxf8 {[%clk 0:01:55]}  Rxf8 {[%clk 0:00:42]} 13. Qxg7 {[%clk 0:01:50]}  cxd4 {[%clk 0:00:39]} 14. Bh6 {[%clk 0:01:49]}  Qe7 {[%clk 0:00:15]} 15. Qxf8+ {[%clk 0:01:48]}  Qxf8 {[%clk 0:00:15]} 16. Bxf8 {[%clk 0:01:49]}  Kxf8 {[%clk 0:00:16]} 17. cxd4 {[%clk 0:01:46]}  Nxd4 {[%clk 0:00:16]} 18. f4 {[%clk 0:01:43]}  Rc8 {[%clk 0:00:13]} 19. Kd2 {[%clk 0:01:43]}  Ba4 {[%clk 0:00:08]} 20. c3 {[%clk 0:01:43]}  Nc6 {[%clk 0:00:04]} 21. Rab1 {[%clk 0:01:43]}  Na5 {[%clk 0:00:04]} 22. Rb4 {[%clk 0:01:41]}  Bc6 {[%clk 0:00:02]} 23. f5 {[%clk 0:01:40]}  b6 {[%clk 0:00:02]} 24. fxe6 {[%clk 0:01:39]}  fxe6 {[%clk 0:00:02]} 25. Rf1+ {[%clk 0:01:39]}  Ke7 {[%clk 0:00:03]} 26. Rh4 {[%clk 0:01:39]}  Nb7 {[%clk 0:00:03]} 27. Rh7+ {[%clk 0:01:38]}  Kd8 {[%clk 0:00:03]} 28. Rf8+ {[%clk 0:01:37]}  Be8 {[%clk 0:00:03]} 29. Bb5 {[%clk 0:01:37]}  Nc5 {[%clk 0:00:02]} 30. Rxe8# {[%clk 0:01:37]} 1-0


[Site "https://www.chess.com"]

[Event "Titled Tuesday Blitz August 1 Early 2023"]
[White "ivana_999"]
[Black "Gontcharov, Vladislav"]
[BlackFideId "4123492"]
[WhiteElo "2056"]
[BlackElo "2522"]
[Result "0-1"]
[Round "1"]
[TimeControl "180+1"]
[Date "2023.08.01"]
[WhiteClock "0:00:21"]
[BlackClock "0:00:14"]
[Board "249"]

1. d4 {[%clk 0:03:00]}  Nf6 {[%clk 0:02:59]} 2. c4 {[%clk 0:03:01]}  e6 {[%clk 0:02:54]} 3. Nc3 {[%clk 0:03:01]}  Bb4 {[%clk 0:02:54]} 4. a3 {[%clk 0:03:01]}  Bxc3+ {[%clk 0:02:54]} 5. bxc3 {[%clk 0:03:02]}  d6 {[%clk 0:02:49]} 6. f3 {[%clk 0:03:02]}  O-O {[%clk 0:02:46]} 7. e4 {[%clk 0:03:01]}  Qe7 {[%clk 0:02:44]} 8. Bd3 {[%clk 0:02:59]}  e5 {[%clk 0:02:44]} 9. Ne2 {[%clk 0:02:58]}  Nc6 {[%clk 0:02:34]} 10. Bg5 {[%clk 0:02:47]}  b6 {[%clk 0:02:30]} 11. O-O {[%clk 0:02:45]}  h6 {[%clk 0:02:29]} 12. Bh4 {[%clk 0:02:39]}  g5 {[%clk 0:02:15]} 13. Bf2 {[%clk 0:02:37]}  Nh5 {[%clk 0:02:11]} 14. g4 {[%clk 0:02:28]}  Nf4 {[%clk 0:02:11]} 15. Nxf4 {[%clk 0:02:28]}  exf4 {[%clk 0:01:49]} 16. h4 {[%clk 0:02:24]}  f6 {[%clk 0:01:44]} 17. Kg2 {[%clk 0:02:22]}  Kg7 {[%clk 0:01:43]} 18. Rh1 {[%clk 0:02:21]}  Ba6 {[%clk 0:01:35]} 19. Qe2 {[%clk 0:02:15]}  Rae8 {[%clk 0:01:32]} 20. hxg5 {[%clk 0:02:13]}  fxg5 {[%clk 0:01:32]} 21. Rh5 {[%clk 0:02:10]}  Rf6 {[%clk 0:01:07]} 22. Rah1 {[%clk 0:02:07]}  Qf7 {[%clk 0:01:02]} 23. c5 {[%clk 0:01:53]}  Bxd3 {[%clk 0:00:56]} 24. Qxd3 {[%clk 0:01:52]}  bxc5 {[%clk 0:00:56]} 25. dxc5 {[%clk 0:01:37]}  Ne5 {[%clk 0:00:56]} 26. Qb5 {[%clk 0:01:25]}  Re7 {[%clk 0:00:49]} 27. Qe2 {[%clk 0:01:20]}  Qb3 {[%clk 0:00:48]} 28. Bd4 {[%clk 0:01:19]}  Qxa3 {[%clk 0:00:41]} 29. cxd6 {[%clk 0:01:18]}  cxd6 {[%clk 0:00:40]} 30. Qf2 {[%clk 0:01:01]}  Rb7 {[%clk 0:00:36]} 31. c4 {[%clk 0:00:56]}  Qd3 {[%clk 0:00:18]} 32. Ra1 {[%clk 0:00:39]}  Kf7 {[%clk 0:00:17]} 33. Rah1 {[%clk 0:00:37]}  Rb3 {[%clk 0:00:15]} 34. Bxe5 {[%clk 0:00:36]}  dxe5 {[%clk 0:00:14]} 35. Rxh6 {[%clk 0:00:36]}  Qd4 {[%clk 0:00:11]} 36. Rxf6+ {[%clk 0:00:31]}  Kxf6 {[%clk 0:00:11]} 37. Qxd4 {[%clk 0:00:25]}  exd4 {[%clk 0:00:10]} 38. Rd1 {[%clk 0:00:25]}  Ke5 {[%clk 0:00:10]} 39. c5 {[%clk 0:00:24]}  Rc3 {[%clk 0:00:10]} 40. Ra1 {[%clk 0:00:22]}  d3 {[%clk 0:00:10]} 41. Rxa7 {[%clk 0:00:22]}  Kd4 {[%clk 0:00:10]} 42. Rd7+ {[%clk 0:00:21]}  Ke3 {[%clk 0:00:10]} 43. Rd5 {[%clk 0:00:20]}  d2 {[%clk 0:00:10]} 44. e5 {[%clk 0:00:20]}  Rd3 {[%clk 0:00:10]} 45. Rxd3+ {[%clk 0:00:19]}  Kxd3 {[%clk 0:00:10]} 46. e6 {[%clk 0:00:20]}  d1=Q {[%clk 0:00:10]} 47. c6 {[%clk 0:00:18]}  Qe2+ {[%clk 0:00:11]} 48. Kh3 {[%clk 0:00:18]}  Qxe6 {[%clk 0:00:11]} 49. c7 {[%clk 0:00:18]}  Qc8 {[%clk 0:00:12]} 50. Kg2 {[%clk 0:00:18]}  Qxc7 {[%clk 0:00:13]} 51. Kh3 {[%clk 0:00:19]}  Qc3 {[%clk 0:00:12]} 52. Kg2 {[%clk 0:00:19]}  Ke3 {[%clk 0:00:13]} 53. Kh3 {[%clk 0:00:20]}  Kxf3 {[%clk 0:00:13]} 54. Kh2 {[%clk 0:00:21]}  Qd2+ {[%clk 0:00:13]} 55. Kh3 {[%clk 0:00:21]}  Qg2# {[%clk 0:00:14]} 0-1


[Site "https://www.chess.com"]

[Event "Titled Tuesday Blitz August 1 Early 2023"]
[White "ilya2700"]
[Black "Goltseva, Ekaterina"]
[BlackFideId "24173770"]
[WhiteElo "2038"]
[BlackElo "2521"]
[Result "0-1"]
[Round "1"]
[TimeControl "180+1"]
[Date "2023.08.01"]
[WhiteClock "0:00:00"]
[BlackClock "0:00:15"]
[Board "251"]

1. e4 {[%clk 0:03:00]}  e5 {[%clk 0:02:54]} 2. Nf3 {[%clk 0:03:00]}  Nc6 {[%clk 0:02:54]} 3. Bc4 {[%clk 0:03:00]}  Be7 {[%clk 0:02:52]} 4. d3 {[%clk 0:02:59]}  Nf6 {[%clk 0:02:52]} 5. Nc3 {[%clk 0:02:59]}  O-O {[%clk 0:02:51]} 6. O-O {[%clk 0:02:59]}  d6 {[%clk 0:02:50]} 7. h3 {[%clk 0:02:59]}  Na5 {[%clk 0:02:49]} 8. Bb3 {[%clk 0:02:58]}  Nxb3 {[%clk 0:02:47]} 9. axb3 {[%clk 0:02:59]}  c6 {[%clk 0:02:46]} 10. d4 {[%clk 0:02:55]}  Qc7 {[%clk 0:02:43]} 11. Be3 {[%clk 0:02:51]}  b6 {[%clk 0:02:41]} 12. Qd2 {[%clk 0:02:47]}  Bb7 {[%clk 0:02:35]} 13. Rfd1 {[%clk 0:02:39]}  Rfd8 {[%clk 0:02:29]} 14. Qe2 {[%clk 0:02:35]}  h6 {[%clk 0:02:16]} 15. Rd2 {[%clk 0:02:28]}  Rd7 {[%clk 0:02:07]} 16. Rad1 {[%clk 0:02:25]}  Rad8 {[%clk 0:02:06]} 17. dxe5 {[%clk 0:02:03]}  dxe5 {[%clk 0:02:06]} 18. Rxd7 {[%clk 0:01:57]}  Rxd7 {[%clk 0:02:04]} 19. Rxd7 {[%clk 0:01:57]}  Nxd7 {[%clk 0:02:05]} 20. Qd2 {[%clk 0:01:55]}  Ba6 {[%clk 0:01:56]} 21. Ne1 {[%clk 0:01:22]}  Nc5 {[%clk 0:01:51]} 22. f4 {[%clk 0:01:17]}  exf4 {[%clk 0:01:38]} 23. Bxf4 {[%clk 0:01:18]}  Qd7 {[%clk 0:01:35]} 24. Nf3 {[%clk 0:01:06]}  Bf6 {[%clk 0:01:11]} 25. e5 {[%clk 0:01:00]}  Be7 {[%clk 0:01:06]} 26. Qxd7 {[%clk 0:00:48]}  Nxd7 {[%clk 0:01:07]} 27. Nd4 {[%clk 0:00:46]}  Bc5 {[%clk 0:01:04]} 28. Be3 {[%clk 0:00:32]}  Nxe5 {[%clk 0:00:58]} 29. Kf2 {[%clk 0:00:31]}  Bb7 {[%clk 0:00:47]} 30. Nf5 {[%clk 0:00:30]}  Bf8 {[%clk 0:00:42]} 31. Bf4 {[%clk 0:00:26]}  Nd7 {[%clk 0:00:39]} 32. Bd6 {[%clk 0:00:23]}  c5 {[%clk 0:00:29]} 33. Bxf8 {[%clk 0:00:19]}  Kxf8 {[%clk 0:00:30]} 34. Nb5 {[%clk 0:00:20]}  a6 {[%clk 0:00:26]} 35. Nbd6 {[%clk 0:00:18]}  Bc6 {[%clk 0:00:25]} 36. Nc4 {[%clk 0:00:15]}  h5 {[%clk 0:00:20]} 37. Kg3 {[%clk 0:00:11]}  g6 {[%clk 0:00:20]} 38. Nfd6 {[%clk 0:00:10]}  b5 {[%clk 0:00:20]} 39. Ne3 {[%clk 0:00:08]}  Ke7 {[%clk 0:00:19]} 40. Nc8+ {[%clk 0:00:07]}  Ke6 {[%clk 0:00:19]} 41. c4 {[%clk 0:00:07]}  Bb7 {[%clk 0:00:19]} 42. Na7 {[%clk 0:00:06]}  b4 {[%clk 0:00:16]} 43. Nc2 {[%clk 0:00:04]}  Kd6 {[%clk 0:00:17]} 44. Ne3 {[%clk 0:00:04]}  Kc7 {[%clk 0:00:17]} 45. Nd5+ {[%clk 0:00:03]}  Kb8 {[%clk 0:00:18]} 46. Ne7 {[%clk 0:00:01]}  Kxa7 {[%clk 0:00:17]} 47. Ng8 {[%clk 0:00:01]}  Kb6 {[%clk 0:00:16]} 48. Nh6 {[%clk 0:00:02]}  Ne5 {[%clk 0:00:16]} 49. Nxf7 {[%clk 0:00:00]}  Nxf7 {[%clk 0:00:15]} 0-1


[Site "https://www.chess.com"]

[Event "Titled Tuesday Blitz August 1 Early 2023"]
[White "Berezin, Viktor"]
[Black "Gopal, K.N."]
[WhiteFideId "14107872"]
[BlackFideId "5001447"]
[WhiteElo "2521"]
[BlackElo "2026"]
[Result "1-0"]
[Round "1"]
[TimeControl "180+1"]
[Date "2023.08.01"]
[WhiteClock "0:00:32"]
[BlackClock "0:00:04"]
[Board "252"]

1. d4 {[%clk 0:02:59]}  Nf6 {[%clk 0:02:50]} 2. Nf3 {[%clk 0:02:53]}  d5 {[%clk 0:02:47]} 3. c4 {[%clk 0:02:52]}  c6 {[%clk 0:02:47]} 4. e3 {[%clk 0:02:50]}  e6 {[%clk 0:02:41]} 5. Nbd2 {[%clk 0:02:45]}  Be7 {[%clk 0:02:37]} 6. Bd3 {[%clk 0:02:43]}  Nbd7 {[%clk 0:02:37]} 7. O-O {[%clk 0:02:35]}  O-O {[%clk 0:02:34]} 8. e4 {[%clk 0:02:35]}  dxe4 {[%clk 0:02:34]} 9. Nxe4 {[%clk 0:02:36]}  Nxe4 {[%clk 0:02:33]} 10. Bxe4 {[%clk 0:02:37]}  Nf6 {[%clk 0:02:33]} 11. Bc2 {[%clk 0:02:37]}  c5 {[%clk 0:02:24]} 12. Qd3 {[%clk 0:02:33]}  cxd4 {[%clk 0:02:20]} 13. Bg5 {[%clk 0:02:32]}  g6 {[%clk 0:02:18]} 14. Bh6 {[%clk 0:02:24]}  Re8 {[%clk 0:02:17]} 15. Rad1 {[%clk 0:02:23]}  Ng4 {[%clk 0:02:10]} 16. Bf4 {[%clk 0:02:20]}  Bf6 {[%clk 0:02:02]} 17. h3 {[%clk 0:01:38]}  e5 {[%clk 0:02:00]} 18. hxg4 {[%clk 0:01:38]}  exf4 {[%clk 0:01:56]} 19. g5 {[%clk 0:01:37]}  Bg7 {[%clk 0:01:51]} 20. Nxd4 {[%clk 0:01:33]}  Qxg5 {[%clk 0:01:48]} 21. Rfe1 {[%clk 0:01:25]}  Bg4 {[%clk 0:01:39]} 22. Nf3 {[%clk 0:01:20]}  Qh5 {[%clk 0:01:21]} 23. Rxe8+ {[%clk 0:01:18]}  Rxe8 {[%clk 0:01:19]} 24. Re1 {[%clk 0:01:18]}  Rf8 {[%clk 0:01:02]} 25. Re7 {[%clk 0:01:10]}  Bf6 {[%clk 0:00:45]} 26. Rxb7 {[%clk 0:01:03]}  Rd8 {[%clk 0:00:43]} 27. Qe4 {[%clk 0:00:54]}  Bf5 {[%clk 0:00:23]} 28. Qe2 {[%clk 0:00:54]}  Bxc2 {[%clk 0:00:19]} 29. Qxc2 {[%clk 0:00:55]}  Kg7 {[%clk 0:00:17]} 30. c5 {[%clk 0:00:55]}  g5 {[%clk 0:00:16]} 31. Qb3 {[%clk 0:00:54]}  Rc8 {[%clk 0:00:15]} 32. Qd5 {[%clk 0:00:48]}  h6 {[%clk 0:00:13]} 33. Ne5 {[%clk 0:00:46]}  g4 {[%clk 0:00:12]} 34. Rxf7+ {[%clk 0:00:44]}  Kh8 {[%clk 0:00:12]} 35. Rxf6 {[%clk 0:00:41]}  f3 {[%clk 0:00:10]} 36. Nf7+ {[%clk 0:00:32]}  Kg7 {[%clk 0:00:04]} 37. Qxh5 {[%clk 0:00:32]} 1-0


[Site "https://www.chess.com"]